[Event "*** SCC Grand Prix: Titled Tuesday Blitz"]
[Site "Chess.com"]
[Date "2020.07.14"]
[Round "1"]
[White "Supernotar"]
[Black "zmeeed67"]
[Result "1/2-1/2"]
[WhiteElo "2841"]
[BlackElo "2431"]
[TimeControl "180+1"]
[EndTime "10:06:59 PDT"]
[Termination "Game drawn by repetition"]

1. d4 {[%clk 0:03:00.9]} 1... d5 {[%clk 0:02:59.8]} 2. c4 {[%clk 0:03:01]} 2...
e6 {[%clk 0:02:59.7]} 3. Nf3 {[%clk 0:03:00.5]} 3... Nf6 {[%clk 0:02:59.6]} 4.
e3 {[%clk 0:03:00.4]} 4... c6 {[%clk 0:02:58.6]} 5. Nbd2 {[%clk 0:02:59.9]} 5...
Nbd7 {[%clk 0:02:56.1]} 6. Bd3 {[%clk 0:02:59.7]} 6... Bd6 {[%clk 0:02:55.8]} 7.
O-O {[%clk 0:02:59.3]} 7... O-O {[%clk 0:02:55.5]} 8. e4 {[%clk 0:02:58.6]} 8...
dxe4 {[%clk 0:02:53]} 9. Nxe4 {[%clk 0:02:58.8]} 9... Nxe4 {[%clk 0:02:53.5]}
10. Bxe4 {[%clk 0:02:59.1]} 10... Nf6 {[%clk 0:02:53.5]} 11. Bc2 {[%clk
0:02:58.9]} 11... h6 {[%clk 0:02:48.5]} 12. Qd3 {[%clk 0:02:57.2]} 12... c5
{[%clk 0:02:35.4]} 13. Rd1 {[%clk 0:02:55.9]} 13... Qe7 {[%clk 0:02:22.7]} 14.
dxc5 {[%clk 0:02:38.3]} 14... Bxc5 {[%clk 0:02:21.9]} 15. b3 {[%clk 0:02:34.9]}
15... e5 {[%clk 0:01:41.6]} 16. Re1 {[%clk 0:01:57.6]} 16... e4 {[%clk
0:01:35.4]} 17. Qe2 {[%clk 0:01:52.4]} 17... Bg4 {[%clk 0:00:56]} 18. h3 {[%clk
0:01:40.6]} 18... Bh5 {[%clk 0:00:47.3]} 19. g4 {[%clk 0:01:35.9]} 19... Bg6
{[%clk 0:00:39.6]} 20. Bb2 {[%clk 0:01:30.1]} 20... Rfe8 {[%clk 0:00:22.4]} 21.
Nh4 {[%clk 0:01:28.2]} 21... Bh7 {[%clk 0:00:20.8]} 22. Rad1 {[%clk 0:01:15.6]}
22... e3 {[%clk 0:00:20.5]} 23. fxe3 {[%clk 0:01:02.4]} 23... Bxc2 {[%clk
0:00:19.1]} 24. Qxc2 {[%clk 0:00:58.3]} 24... Bxe3+ {[%clk 0:00:15.7]} 25. Kg2
{[%clk 0:00:56.4]} 25... Nxg4 {[%clk 0:00:09.1]} 26. Nf5 {[%clk 0:00:56.4]}
26... Qg5 {[%clk 0:00:08.5]} 27. hxg4 {[%clk 0:00:55.2]} 27... Qxg4+ {[%clk
0:00:08.5]} 28. Ng3 {[%clk 0:00:55.1]} 28... Bf4 {[%clk 0:00:05.3]} 29. Qf2
{[%clk 0:00:53.3]} 29... Bxg3 {[%clk 0:00:02.4]} 30. Qxg3 {[%clk 0:00:52.7]}
30... Re2+ {[%clk 0:00:02.9]} 31. Rxe2 {[%clk 0:00:52.2]} 31... Qxe2+ {[%clk
0:00:03.8]} 32. Kh3 {[%clk 0:00:52.7]} 32... Qxb2 {[%clk 0:00:03]} 33. Rd7
{[%clk 0:00:43.3]} 33... Qf6 {[%clk 0:00:02.9]} 34. Rxb7 {[%clk 0:00:40.3]}
34... Re8 {[%clk 0:00:03.4]} 35. Rb8 {[%clk 0:00:37.1]} 35... Qe6+ {[%clk
0:00:03]} 36. Kh2 {[%clk 0:00:36]} 36... Qe2+ {[%clk 0:00:03]} 37. Kh3 {[%clk
0:00:36.5]} 37... Qe6+ {[%clk 0:00:02.8]} 38. Kh2 {[%clk 0:00:36.7]} 38... Qe2+
{[%clk 0:00:03.2]} 39. Kh3 {[%clk 0:00:37.1]} 39... Qe6+ {[%clk 0:00:03.5]}
1/2-1/2

[Event "*** SCC Grand Prix: Titled Tuesday Blitz"]
[Site "Chess.com"]
[Date "2020.07.14"]
[Round "1"]
[White "MergenKakabaev"]
[Black "Batica1984"]
[Result "0-1"]
[WhiteElo "2430"]
[BlackElo "2877"]
[TimeControl "180+1"]
[EndTime "10:07:00 PDT"]
[Termination "Batica1984 won on time"]

1. e4 {[%clk 0:03:00.9]} 1... c5 {[%clk 0:02:57.9]} 2. Nf3 {[%clk 0:03:00.3]}
2... e6 {[%clk 0:02:56.9]} 3. d4 {[%clk 0:03:00]} 3... cxd4 {[%clk 0:02:56.6]}
4. Nxd4 {[%clk 0:03:00.9]} 4... Nc6 {[%clk 0:02:56.9]} 5. Nxc6 {[%clk
0:03:00.3]} 5... bxc6 {[%clk 0:02:55.9]} 6. Bd3 {[%clk 0:03:00.3]} 6... Nf6
{[%clk 0:02:53.4]} 7. Qe2 {[%clk 0:03:00.3]} 7... d5 {[%clk 0:02:49.4]} 8. Nd2
{[%clk 0:02:59.8]} 8... Be7 {[%clk 0:02:32.1]} 9. O-O {[%clk 0:02:59.4]} 9...
O-O {[%clk 0:02:32]} 10. b3 {[%clk 0:02:59.8]} 10... a5 {[%clk 0:02:16.5]} 11.
Bb2 {[%clk 0:02:58.7]} 11... a4 {[%clk 0:02:16.4]} 12. e5 {[%clk 0:02:58.2]}
12... Nd7 {[%clk 0:02:15.8]} 13. a3 {[%clk 0:02:56]} 13... Nc5 {[%clk
0:02:09.1]} 14. Rfe1 {[%clk 0:02:53.1]} 14... Nxd3 {[%clk 0:02:04.2]} 15. Qxd3
{[%clk 0:02:53.1]} 15... Ba6 {[%clk 0:02:02.9]} 16. Qg3 {[%clk 0:02:51.6]} 16...
c5 {[%clk 0:02:01.5]} 17. Rad1 {[%clk 0:02:41.7]} 17... Qb6 {[%clk 0:01:51.8]}
18. h4 {[%clk 0:02:38.2]} 18... Rac8 {[%clk 0:01:35.3]} 19. h5 {[%clk
0:02:34.6]} 19... h6 {[%clk 0:01:34.8]} 20. Bc1 {[%clk 0:01:55]} 20... Kh8
{[%clk 0:01:29.1]} 21. Nf1 {[%clk 0:01:54.1]} 21... axb3 {[%clk 0:01:25.7]} 22.
cxb3 {[%clk 0:01:53.6]} 22... Rb8 {[%clk 0:01:25]} 23. Re3 {[%clk 0:01:29.1]}
23... d4 {[%clk 0:01:21]} 24. Rf3 {[%clk 0:01:28.8]} 24... Be2 {[%clk
0:01:17.1]} 25. Rdd3 {[%clk 0:01:23.4]} 25... Bxd3 {[%clk 0:01:12]} 26. Rxd3
{[%clk 0:01:22.2]} 26... c4 {[%clk 0:00:54.8]} 27. bxc4 {[%clk 0:01:21.6]} 27...
Qb1 {[%clk 0:00:54.2]} 28. Rd1 {[%clk 0:01:06.9]} 28... Qc2 {[%clk 0:00:49.8]}
29. Re1 {[%clk 0:01:06.6]} 29... Rb3 {[%clk 0:00:46.5]} 30. Qg4 {[%clk
0:01:03.1]} 30... Rb1 {[%clk 0:00:44.3]} 31. Bd2 {[%clk 0:00:46.7]} 31... Rxe1
{[%clk 0:00:44]} 32. Bxe1 {[%clk 0:00:47.6]} 32... Qxc4 {[%clk 0:00:44.5]} 33.
Bd2 {[%clk 0:00:41.5]} 33... Qd3 {[%clk 0:00:42.5]} 34. a4 {[%clk 0:00:39.8]}
34... Ra8 {[%clk 0:00:41.5]} 35. a5 {[%clk 0:00:39.3]} 35... Rd8 {[%clk
0:00:36.3]} 0-1

[Event "*** SCC Grand Prix: Titled Tuesday Blitz"]
[Site "Chess.com"]
[Date "2020.07.14"]
[Round "1"]
[White "plumalka"]
[Black "Jospem"]
[Result "1-0"]
[WhiteElo "2430"]
[BlackElo "2804"]
[TimeControl "180+1"]
[EndTime "10:07:01 PDT"]
[Termination "plumalka won on time"]

1. e4 {[%clk 0:03:00.6]} 1... e5 {[%clk 0:02:20.4]} 2. Nf3 {[%clk 0:02:59.8]}
2... Nc6 {[%clk 0:02:20.4]} 3. Nc3 {[%clk 0:02:58.2]} 3... Nf6 {[%clk
0:02:20.2]} 4. a3 {[%clk 0:02:58.3]} 4... d5 {[%clk 0:02:00.2]} 5. Bb5 {[%clk
0:02:57.7]} 5... d4 {[%clk 0:01:49.7]} 6. Ne2 {[%clk 0:02:57.5]} 6... Bd6 {[%clk
0:01:50.2]} 7. Bxc6+ {[%clk 0:02:56.9]} 7... bxc6 {[%clk 0:01:50.2]} 8. d3
{[%clk 0:02:57.8]} 8... O-O {[%clk 0:01:45]} 9. O-O {[%clk 0:02:57.9]} 9... c5
{[%clk 0:01:45]} 10. c3 {[%clk 0:02:57.3]} 10... h6 {[%clk 0:01:40.7]} 11. Qc2
{[%clk 0:02:53.4]} 11... Re8 {[%clk 0:01:36.5]} 12. Nd2 {[%clk 0:02:49.8]} 12...
Be6 {[%clk 0:01:34.7]} 13. h3 {[%clk 0:02:36.9]} 13... a5 {[%clk 0:01:32.1]} 14.
a4 {[%clk 0:02:23.9]} 14... Nd7 {[%clk 0:01:26.4]} 15. f4 {[%clk 0:02:19.9]}
15... f6 {[%clk 0:01:26.2]} 16. f5 {[%clk 0:02:17.2]} 16... Bf7 {[%clk
0:01:12.7]} 17. c4 {[%clk 0:02:17.1]} 17... Nb8 {[%clk 0:01:10.8]} 18. Nf3
{[%clk 0:02:15.5]} 18... Nc6 {[%clk 0:01:10.7]} 19. Bd2 {[%clk 0:02:12.6]} 19...
Qb8 {[%clk 0:01:08.7]} 20. Rab1 {[%clk 0:02:06.1]} 20... Qb6 {[%clk 0:01:04.1]}
21. Nc1 {[%clk 0:01:54.6]} 21... Rab8 {[%clk 0:01:02.4]} 22. b3 {[%clk
0:01:54.6]} 22... Kf8 {[%clk 0:00:59.8]} 23. Nh4 {[%clk 0:01:53.7]} 23... Ke7
{[%clk 0:01:00.1]} 24. Rf3 {[%clk 0:01:44.7]} 24... Kd7 {[%clk 0:00:59.8]} 25.
Rg3 {[%clk 0:01:44.8]} 25... Rg8 {[%clk 0:01:00.5]} 26. Ng6 {[%clk 0:01:44.6]}
26... Kc8 {[%clk 0:00:43.2]} 27. Qd1 {[%clk 0:01:42.5]} 27... Kb7 {[%clk
0:00:42.7]} 28. Qe1 {[%clk 0:01:40.7]} 28... Ka6 {[%clk 0:00:42.5]} 29. h4
{[%clk 0:01:35.5]} 29... Rb7 {[%clk 0:00:41]} 30. h5 {[%clk 0:01:34.4]} 30...
Qa7 {[%clk 0:00:41.3]} 31. Qd1 {[%clk 0:01:33]} 31... Qb8 {[%clk 0:00:41]} 32.
Rh3 {[%clk 0:01:31.6]} 32... Qd8 {[%clk 0:00:41.4]} 33. g4 {[%clk 0:01:31.2]}
33... Qd7 {[%clk 0:00:41.4]} 34. Rf3 {[%clk 0:01:30.1]} 34... Rgb8 {[%clk
0:00:41.9]} 35. Be1 {[%clk 0:01:27.5]} 35... Rb6 {[%clk 0:00:42.3]} 36. Rf2
{[%clk 0:01:26.1]} 36... R8b7 {[%clk 0:00:38]} 37. Nh4 {[%clk 0:01:25.7]} 37...
Qe8 {[%clk 0:00:37.7]} 38. Rfb2 {[%clk 0:01:24.4]} 38... Qb8 {[%clk 0:00:36.5]}
39. Kf1 {[%clk 0:01:18.3]} 39... Ka7 {[%clk 0:00:36.5]} 40. Bd2 {[%clk
0:01:17.6]} 40... Be8 {[%clk 0:00:35.9]} 41. Qe1 {[%clk 0:01:17.4]} 41... Ra6
{[%clk 0:00:35.6]} 42. Kg1 {[%clk 0:01:16.1]} 42... Ka8 {[%clk 0:00:32.3]} 43.
Nf3 {[%clk 0:01:11.3]} 43... Qa7 {[%clk 0:00:32]} 44. Nh2 {[%clk 0:01:11.1]}
44... Nd8 {[%clk 0:00:32.3]} 45. Nf3 {[%clk 0:01:09.9]} 45... Bc6 {[%clk
0:00:25.7]} 46. Nh2 {[%clk 0:01:09.2]} 46... Nf7 {[%clk 0:00:26.2]} 47. Nf3
{[%clk 0:01:08.9]} 47... Be7 {[%clk 0:00:26.8]} 48. Nh4 {[%clk 0:01:06.5]} 1-0

[Event "*** SCC Grand Prix: Titled Tuesday Blitz"]
[Site "Chess.com"]
[Date "2020.07.14"]
[Round "1"]
[White "FedaMaster"]
[Black "maciek_92"]
[Result "1-0"]
[WhiteElo "2346"]
[BlackElo "2635"]
[TimeControl "180+1"]
[EndTime "10:07:01 PDT"]
[Termination "FedaMaster won on time"]

1. e4 {[%clk 0:03:00.9]} 1... c5 {[%clk 0:02:58.9]} 2. d4 {[%clk 0:03:01]} 2...
cxd4 {[%clk 0:02:58.9]} 3. c3 {[%clk 0:03:01.9]} 3... Nf6 {[%clk 0:02:59.5]} 4.
e5 {[%clk 0:03:01.7]} 4... Nd5 {[%clk 0:02:59.8]} 5. Qxd4 {[%clk 0:03:02.2]}
5... e6 {[%clk 0:02:59.7]} 6. Nf3 {[%clk 0:03:03.1]} 6... Nc6 {[%clk 0:02:59.8]}
7. Qe4 {[%clk 0:03:03.7]} 7... Nde7 {[%clk 0:02:59.5]} 8. Bf4 {[%clk 0:03:00.2]}
8... f5 {[%clk 0:02:41.8]} 9. exf6 {[%clk 0:02:57.6]} 9... gxf6 {[%clk
0:02:42.7]} 10. Bd6 {[%clk 0:02:50.2]} 10... Ng6 {[%clk 0:02:37.8]} 11. Bxf8
{[%clk 0:02:49.9]} 11... Kxf8 {[%clk 0:02:38.7]} 12. h4 {[%clk 0:02:47.9]} 12...
d5 {[%clk 0:02:36.7]} 13. Qe3 {[%clk 0:02:48.4]} 13... h5 {[%clk 0:02:15.5]} 14.
Nbd2 {[%clk 0:02:30.8]} 14... Qb6 {[%clk 0:02:02]} 15. Qd3 {[%clk 0:02:23.4]}
15... Kf7 {[%clk 0:01:34.2]} 16. O-O-O {[%clk 0:02:21]} 16... Qxf2 {[%clk
0:01:16.6]} 17. Qc2 {[%clk 0:02:20.6]} 17... e5 {[%clk 0:01:10.5]} 18. Bb5
{[%clk 0:02:09.7]} 18... Nce7 {[%clk 0:00:57.5]} 19. Rhf1 {[%clk 0:02:00.2]}
19... Qb6 {[%clk 0:00:51]} 20. Ba4 {[%clk 0:01:30.3]} 20... Nf4 {[%clk
0:00:42.9]} 21. Nd4 {[%clk 0:01:00.6]} 21... Nfg6 {[%clk 0:00:26.8]} 22. Ne2
{[%clk 0:00:44.4]} 22... Bg4 {[%clk 0:00:22]} 23. Nf3 {[%clk 0:00:39.6]} 23...
Kg7 {[%clk 0:00:19.3]} 24. Ng3 {[%clk 0:00:36.4]} 24... Rac8 {[%clk 0:00:18.6]}
25. Kb1 {[%clk 0:00:34.7]} 25... d4 {[%clk 0:00:18.9]} 26. c4 {[%clk 0:00:34.7]}
26... Qe6 {[%clk 0:00:16.9]} 27. Bb3 {[%clk 0:00:32.6]} 27... Nf5 {[%clk
0:00:09.8]} 28. Ng5 {[%clk 0:00:26.7]} 28... fxg5 {[%clk 0:00:07.6]} 29. Nxf5+
{[%clk 0:00:26]} 29... Bxf5 {[%clk 0:00:08.1]} 30. Rxf5 {[%clk 0:00:26.3]} 30...
e4 {[%clk 0:00:04.3]} 31. Rxg5 {[%clk 0:00:25.4]} 31... d3 {[%clk 0:00:04.8]}
32. Qc3+ {[%clk 0:00:25.2]} 32... Kh6 {[%clk 0:00:01.5]} 33. c5 {[%clk
0:00:23.9]} 1-0

[Event "*** SCC Grand Prix: Titled Tuesday Blitz"]
[Site "Chess.com"]
[Date "2020.07.14"]
[Round "1"]
[White "Rish_97"]
[Black "Mikhal867"]
[Result "0-1"]
[WhiteElo "2676"]
[BlackElo "2376"]
[TimeControl "180+1"]
[EndTime "10:07:03 PDT"]
[Termination "Mikhal867 won on time"]

1. d4 {[%clk 0:02:49.7]} 1... g6 {[%clk 0:02:59]} 2. Nf3 {[%clk 0:02:48.1]} 2...
Bg7 {[%clk 0:02:58.7]} 3. c3 {[%clk 0:02:46]} 3... c5 {[%clk 0:02:42.2]} 4. e4
{[%clk 0:02:41.1]} 4... Nf6 {[%clk 0:02:36]} 5. e5 {[%clk 0:02:35.6]} 5... Ne4
{[%clk 0:02:35.5]} 6. d5 {[%clk 0:02:23.3]} 6... d6 {[%clk 0:02:31.2]} 7. Qa4+
{[%clk 0:02:22.3]} 7... Bd7 {[%clk 0:02:23]} 8. Qxe4 {[%clk 0:02:23.2]} 8... O-O
{[%clk 0:02:20.8]} 9. Bc4 {[%clk 0:01:47.7]} 9... b5 {[%clk 0:02:16.4]} 10. Bb3
{[%clk 0:01:47]} 10... c4 {[%clk 0:02:15.8]} 11. Bc2 {[%clk 0:01:46.5]} 11... e6
{[%clk 0:02:12.8]} 12. dxe6 {[%clk 0:01:41]} 12... Bc6 {[%clk 0:02:12.5]} 13.
Qh4 {[%clk 0:01:33.9]} 13... Qxh4 {[%clk 0:01:52.7]} 14. Nxh4 {[%clk 0:01:34.8]}
14... Bxe5 {[%clk 0:01:37.7]} 15. exf7+ {[%clk 0:01:30.3]} 15... Rxf7 {[%clk
0:01:37]} 16. Nf3 {[%clk 0:01:30.9]} 16... Rxf3 {[%clk 0:01:29.1]} 17. gxf3
{[%clk 0:01:30.3]} 17... Bxf3 {[%clk 0:01:28.8]} 18. Rf1 {[%clk 0:01:24]} 18...
Nd7 {[%clk 0:01:26.7]} 19. Be3 {[%clk 0:01:12.1]} 19... Bxh2 {[%clk 0:01:24.3]}
20. Nd2 {[%clk 0:01:02.1]} 20... Bg2 {[%clk 0:01:23.7]} 21. Be4 {[%clk
0:00:57.7]} 21... Bxe4 {[%clk 0:01:13.4]} 22. Nxe4 {[%clk 0:00:58.6]} 22... Re8
{[%clk 0:01:12.2]} 23. Nd2 {[%clk 0:00:46.2]} 23... Ne5 {[%clk 0:01:10.4]} 24.
Ke2 {[%clk 0:00:43.5]} 24... Nd3 {[%clk 0:01:08.3]} 25. a4 {[%clk 0:00:43.5]}
25... a6 {[%clk 0:00:58]} 26. axb5 {[%clk 0:00:43.9]} 26... axb5 {[%clk
0:00:57.9]} 27. Ra5 {[%clk 0:00:42.1]} 27... b4 {[%clk 0:00:52.4]} 28. Nxc4
{[%clk 0:00:41.2]} 28... Nxb2 {[%clk 0:00:52.3]} 29. Nxb2 {[%clk 0:00:40.7]}
29... bxc3 {[%clk 0:00:52.3]} 30. Nd3 {[%clk 0:00:41.1]} 30... c2 {[%clk
0:00:46.4]} 31. Rc1 {[%clk 0:00:39.4]} 31... Rc8 {[%clk 0:00:45.1]} 32. Ra2
{[%clk 0:00:38.8]} 32... d5 {[%clk 0:00:44.1]} 33. Raxc2 {[%clk 0:00:39.7]}
33... Re8 {[%clk 0:00:43.1]} 34. Rc8 {[%clk 0:00:39.5]} 34... Kf7 {[%clk
0:00:41.1]} 0-1

[Event "*** SCC Grand Prix: Titled Tuesday Blitz"]
[Site "Chess.com"]
[Date "2020.07.14"]
[Round "1"]
[White "saraswathii"]
[Black "124chess"]
[Result "0-1"]
[WhiteElo "2359"]
[BlackElo "2684"]
[TimeControl "180+1"]
[EndTime "10:07:03 PDT"]
[Termination "124chess won by resignation"]

1. e4 {[%clk 0:02:59.9]} 1... e5 {[%clk 0:02:59.4]} 2. d3 {[%clk 0:02:59.9]}
2... Nf6 {[%clk 0:02:57.5]} 3. Nf3 {[%clk 0:02:59.9]} 3... Nc6 {[%clk
0:02:57.1]} 4. g3 {[%clk 0:03:00]} 4... g6 {[%clk 0:02:57.4]} 5. Bg2 {[%clk
0:03:00]} 5... Bg7 {[%clk 0:02:58]} 6. O-O {[%clk 0:02:59.2]} 6... O-O {[%clk
0:02:58.7]} 7. c3 {[%clk 0:02:58.6]} 7... d6 {[%clk 0:02:56.2]} 8. Qe2 {[%clk
0:02:58]} 8... Be6 {[%clk 0:02:53.2]} 9. d4 {[%clk 0:02:57]} 9... exd4 {[%clk
0:02:52.2]} 10. cxd4 {[%clk 0:02:56.5]} 10... Bg4 {[%clk 0:02:52.7]} 11. Rd1
{[%clk 0:02:46.3]} 11... Re8 {[%clk 0:02:50]} 12. Nc3 {[%clk 0:02:44.5]} 12...
Nxe4 {[%clk 0:02:36.1]} 13. Nxe4 {[%clk 0:02:42.4]} 13... d5 {[%clk 0:02:35.9]}
14. h3 {[%clk 0:02:36]} 14... Rxe4 {[%clk 0:02:11.1]} 15. Be3 {[%clk 0:02:24.4]}
15... Bxf3 {[%clk 0:01:08.6]} 16. Qxf3 {[%clk 0:02:13.4]} 16... Qd7 {[%clk
0:00:41.7]} 17. Rd2 {[%clk 0:01:55.1]} 17... Rae8 {[%clk 0:00:41.2]} 18. Rad1
{[%clk 0:01:51.8]} 18... h5 {[%clk 0:00:39.9]} 19. Rd3 {[%clk 0:01:36.8]} 19...
Ne7 {[%clk 0:00:33.4]} 20. Qe2 {[%clk 0:01:34.6]} 20... Re6 {[%clk 0:00:33.3]}
21. Rb3 {[%clk 0:01:31]} 21... c6 {[%clk 0:00:32.4]} 22. g4 {[%clk 0:01:23.3]}
22... hxg4 {[%clk 0:00:30.9]} 23. hxg4 {[%clk 0:01:24.2]} 23... Nc8 {[%clk
0:00:31.3]} 24. Qd2 {[%clk 0:01:14.1]} 24... Nd6 {[%clk 0:00:31]} 25. Qc1 {[%clk
0:01:08.4]} 25... Nc4 {[%clk 0:00:29.5]} 26. Bf4 {[%clk 0:01:07.6]} 26... Re2
{[%clk 0:00:26.7]} 27. Bf3 {[%clk 0:01:04.7]} 27... R2e7 {[%clk 0:00:26.7]} 28.
Rbd3 {[%clk 0:01:04.3]} 28... Nd6 {[%clk 0:00:21.3]} 29. Qc5 {[%clk 0:01:02]}
29... Ne4 {[%clk 0:00:15.1]} 30. Qxa7 {[%clk 0:01:01.8]} 30... Qe6 {[%clk
0:00:14.1]} 31. Kg2 {[%clk 0:00:51]} 31... Qf6 {[%clk 0:00:14.2]} 32. Be5 {[%clk
0:00:49.9]} 32... Qg5 {[%clk 0:00:12.3]} 33. Bxg7 {[%clk 0:00:49]} 33... Kxg7
{[%clk 0:00:13.2]} 34. Qa5 {[%clk 0:00:47.2]} 34... Nf6 {[%clk 0:00:13.3]} 35.
Kg3 {[%clk 0:00:45.7]} 35... Re4 {[%clk 0:00:13.5]} 36. Bxe4 {[%clk 0:00:25.6]}
36... Qxg4+ {[%clk 0:00:13.4]} 37. Kh2 {[%clk 0:00:25.4]} 37... Rh8+ {[%clk
0:00:14]} 0-1

[Event "*** SCC Grand Prix: Titled Tuesday Blitz"]
[Site "Chess.com"]
[Date "2020.07.14"]
[Round "1"]
[White "binbin239"]
[Black "aloe_normansen"]
[Result "1-0"]
[WhiteElo "2539"]
[BlackElo "2206"]
[TimeControl "180+1"]
[EndTime "10:07:03 PDT"]
[Termination "binbin239 won on time"]

1. d4 {[%clk 0:02:58.2]} 1... Nf6 {[%clk 0:02:59]} 2. c4 {[%clk 0:02:57.8]} 2...
g6 {[%clk 0:02:58.9]} 3. Nf3 {[%clk 0:02:58.3]} 3... Bg7 {[%clk 0:02:58.8]} 4.
g3 {[%clk 0:02:58.9]} 4... O-O {[%clk 0:02:58.7]} 5. Bg2 {[%clk 0:02:59.5]} 5...
d5 {[%clk 0:02:58.6]} 6. O-O {[%clk 0:02:59.8]} 6... Nc6 {[%clk 0:02:54.8]} 7.
cxd5 {[%clk 0:02:58.5]} 7... Nxd5 {[%clk 0:02:55.7]} 8. Nc3 {[%clk 0:02:58.7]}
8... Nb6 {[%clk 0:02:55.5]} 9. e4 {[%clk 0:02:58.6]} 9... Bg4 {[%clk 0:02:12.7]}
10. d5 {[%clk 0:02:55]} 10... Nd4 {[%clk 0:02:00.9]} 11. Be3 {[%clk 0:02:42.8]}
11... c5 {[%clk 0:01:53.8]} 12. dxc6 {[%clk 0:02:40.7]} 12... Nxc6 {[%clk
0:01:52.7]} 13. Qb3 {[%clk 0:02:35.8]} 13... Rc8 {[%clk 0:01:20.6]} 14. Rfd1
{[%clk 0:02:32.1]} 14... Qe8 {[%clk 0:01:04.5]} 15. Bxb6 {[%clk 0:02:28.6]}
15... axb6 {[%clk 0:01:03.4]} 16. Qxb6 {[%clk 0:02:28.4]} 16... Ne5 {[%clk
0:00:57.2]} 17. Qe3 {[%clk 0:02:04.2]} 17... Nc4 {[%clk 0:00:55.1]} 18. Qe2
{[%clk 0:01:55.7]} 18... Nxb2 {[%clk 0:00:52.8]} 19. Qxb2 {[%clk 0:01:55.3]}
19... Bxc3 {[%clk 0:00:51.8]} 20. Qxb7 {[%clk 0:01:55]} 20... Bxa1 {[%clk
0:00:49.8]} 21. Rxa1 {[%clk 0:01:55]} 21... Qd7 {[%clk 0:00:33.5]} 22. Qb3
{[%clk 0:01:49.1]} 22... Rb8 {[%clk 0:00:29.8]} 23. Qe3 {[%clk 0:01:48.9]} 23...
Kg7 {[%clk 0:00:20.3]} 24. Ne5 {[%clk 0:01:45.5]} 24... Qe6 {[%clk 0:00:20.4]}
25. Qd4 {[%clk 0:01:43.3]} 25... f6 {[%clk 0:00:20.6]} 26. Nxg4 {[%clk
0:01:39.3]} 26... Qxg4 {[%clk 0:00:21.5]} 27. a4 {[%clk 0:01:39]} 27... Rfd8
{[%clk 0:00:20.5]} 28. Qa7 {[%clk 0:01:38.7]} 28... Qd7 {[%clk 0:00:19.1]} 29.
Qc5 {[%clk 0:01:36.9]} 29... Rdc8 {[%clk 0:00:16.6]} 30. Qa3 {[%clk 0:01:36.5]}
30... Qd6 {[%clk 0:00:15.9]} 31. Qe3 {[%clk 0:01:35.9]} 31... Rc2 {[%clk
0:00:10.4]} 32. a5 {[%clk 0:01:34.6]} 32... Rbb2 {[%clk 0:00:10.2]} 33. Rf1
{[%clk 0:01:30.7]} 33... Qa6 {[%clk 0:00:09.4]} 34. Qa3 {[%clk 0:01:29.2]} 34...
Kf8 {[%clk 0:00:09.1]} 35. e5 {[%clk 0:01:24]} 35... fxe5 {[%clk 0:00:07.7]} 36.
Be4 {[%clk 0:01:23]} 36... Rd2 {[%clk 0:00:05.2]} 37. Qf3+ {[%clk 0:01:22.2]}
37... Kg7 {[%clk 0:00:04.6]} 38. Bd5 {[%clk 0:01:20.1]} 38... e6 {[%clk
0:00:05]} 39. Be4 {[%clk 0:01:12.8]} 39... Qxa5 {[%clk 0:00:05.1]} 40. Qe3
{[%clk 0:01:10.5]} 40... Qb6 {[%clk 0:00:04.4]} 41. Qf3 {[%clk 0:01:09.4]} 41...
Qc5 {[%clk 0:00:03.4]} 42. h4 {[%clk 0:01:07.9]} 42... h5 {[%clk 0:00:01.9]} 43.
Bb1 {[%clk 0:01:06.7]} 43... Rb4 {[%clk 0:00:02]} 44. Qa8 {[%clk 0:01:05.1]}
44... Rbd4 {[%clk 0:00:02]} 45. Qb7+ {[%clk 0:01:04.7]} 45... Rd7 {[%clk
0:00:02.2]} 46. Qe4 {[%clk 0:01:04.2]} 1-0

[Event "*** SCC Grand Prix: Titled Tuesday Blitz"]
[Site "Chess.com"]
[Date "2020.07.14"]
[Round "1"]
[White "manmanlai1"]
[Black "L_lorenzo"]
[Result "1-0"]
[WhiteElo "2464"]
[BlackElo "1988"]
[TimeControl "180+1"]
[EndTime "10:07:03 PDT"]
[Termination "manmanlai1 won on time"]

1. e4 {[%clk 0:02:59.2]} 1... c5 {[%clk 0:02:59.3]} 2. Nf3 {[%clk 0:02:58.9]}
2... e6 {[%clk 0:02:58]} 3. g3 {[%clk 0:02:56.4]} 3... Nc6 {[%clk 0:02:57.6]} 4.
Bg2 {[%clk 0:02:56.1]} 4... d6 {[%clk 0:02:55.6]} 5. O-O {[%clk 0:02:54.7]} 5...
Bd7 {[%clk 0:02:55.6]} 6. c3 {[%clk 0:02:53.9]} 6... Rc8 {[%clk 0:02:52.7]} 7.
d4 {[%clk 0:02:53.3]} 7... cxd4 {[%clk 0:02:52.5]} 8. cxd4 {[%clk 0:02:54.2]}
8... Nf6 {[%clk 0:02:50.8]} 9. Qe2 {[%clk 0:02:53.5]} 9... Be7 {[%clk
0:02:50.2]} 10. Nc3 {[%clk 0:02:51.9]} 10... O-O {[%clk 0:02:49.6]} 11. Rd1
{[%clk 0:02:48.4]} 11... Qa5 {[%clk 0:02:47.5]} 12. h3 {[%clk 0:02:46.4]} 12...
Rfe8 {[%clk 0:02:46.5]} 13. a3 {[%clk 0:02:44.3]} 13... a6 {[%clk 0:02:45.5]}
14. Be3 {[%clk 0:02:38.5]} 14... b5 {[%clk 0:02:44.9]} 15. b4 {[%clk 0:02:34.4]}
15... Qc7 {[%clk 0:02:44.9]} 16. Rac1 {[%clk 0:02:34.1]} 16... Qb8 {[%clk
0:02:45.2]} 17. g4 {[%clk 0:02:29.1]} 17... d5 {[%clk 0:02:29.3]} 18. e5 {[%clk
0:02:24.6]} 18... Ne4 {[%clk 0:02:22.3]} 19. Nxe4 {[%clk 0:02:24.2]} 19... dxe4
{[%clk 0:02:23.2]} 20. Nd2 {[%clk 0:02:24.6]} 20... f5 {[%clk 0:02:16.7]} 21.
exf6 {[%clk 0:02:22.2]} 21... Bxf6 {[%clk 0:02:15]} 22. Nxe4 {[%clk 0:02:13.4]}
22... Bxd4 {[%clk 0:02:06.1]} 23. Rxc6 {[%clk 0:02:03.8]} 23... Bxe3 {[%clk
0:01:58.2]} 24. Rxc8 {[%clk 0:02:01.5]} 24... Bxf2+ {[%clk 0:01:57.3]} 25. Qxf2
{[%clk 0:01:55.3]} 25... Bxc8 {[%clk 0:01:53.4]} 26. Nc5 {[%clk 0:01:44.5]}
26... Rf8 {[%clk 0:01:48.9]} 27. Qe3 {[%clk 0:01:44.5]} 27... Qb6 {[%clk
0:01:45.2]} 28. Qe5 {[%clk 0:01:38.7]} 28... a5 {[%clk 0:01:24.2]} 29. Qd6
{[%clk 0:01:33.5]} 29... Qxd6 {[%clk 0:01:21]} 30. Rxd6 {[%clk 0:01:34.4]} 30...
axb4 {[%clk 0:01:21.5]} 31. axb4 {[%clk 0:01:34.3]} 31... h6 {[%clk 0:01:11.6]}
32. Bc6 {[%clk 0:01:26.7]} 32... e5 {[%clk 0:01:01.9]} 33. Bxb5 {[%clk
0:01:23.5]} 33... h5 {[%clk 0:01:01.7]} 34. Be2 {[%clk 0:01:20.3]} 34... hxg4
{[%clk 0:00:52]} 35. hxg4 {[%clk 0:01:21.2]} 35... Kh7 {[%clk 0:00:36]} 36. b5
{[%clk 0:01:20.7]} 36... Rf4 {[%clk 0:00:31.3]} 37. g5 {[%clk 0:01:12.1]} 37...
Bf5 {[%clk 0:00:22.1]} 38. b6 {[%clk 0:01:10.9]} 38... Rb4 {[%clk 0:00:22.2]}
39. Kf2 {[%clk 0:01:01.6]} 39... e4 {[%clk 0:00:21.8]} 40. Ke3 {[%clk
0:01:00.1]} 40... Rb2 {[%clk 0:00:17.5]} 41. b7 {[%clk 0:00:57.7]} 41... g6
{[%clk 0:00:07.1]} 42. Rd8 {[%clk 0:00:55.5]} 1-0